bitfinex/quotes_ETHUSD_20251012
["timestamp","ask_amount","ask_price","bid_price","bid_amount"]
[1760282314601,2.45532901,4072.8,4069.8,0.4696]
[1760282314768,0.2875,4072.9,4069.8,0.4696]
[1760282314971,7.63749429,4072.6,4070.0,2.45700245]
[1760282315169,5.18205151,4072.6,4071.2,2.45626634]
[1760282315398,5.18205151,4072.6,4070.1,0.6845]
[1760282315399,5.18205151,4072.6,4070.6,0.4696]
[1760282315706,7.63753558,4072.6,4071.2,2.45624754]
[1760282315865,5.18205151,4072.6,4070.7,2.45657212]
[1760282316064,5.18205151,4072.6,4070.7,1.92]
[1760282316300,5.18205151,4072.6,4070.1,0.2149]
[1760282316301,5.18205151,4072.6,4071.0,1.92]
[1760282316515,5.18205151,4072.6,4071.5,2.45605904]
[1760282316692,5.18205151,4072.6,4071.0,1.92]
[1760282317002,5.18205151,4072.6,4071.4,2.45614252]
[1760282317176,7.63752627,4072.6,4070.2,1.92]
[1760282317381,5.18205151,4072.6,4070.3,0.4696]
[1760282317678,5.18205151,4072.6,4070.5,2.45670065]
[1760282318011,5.18205151,4072.6,4072.5,2.45549416]
[1760282318515,5.18205151,4072.6,4070.8,0.4696]
[1760282318680,5.46835151,4072.6,4070.0,0.4696]
[1760282319000,5.46835151,4072.6,4072.1,2.45572786]
[1760282319201,0.2863,4072.5,4070.5,2.45670065]
[1760282319407,5.18205151,4072.6,4070.9,2.45645925]
[1760282319591,5.18205151,4072.6,4071.0,0.4696]
[1760282319907,5.18205151,4072.6,4070.8,0.4696]
[1760282320078,5.18205151,4072.6,4070.1,0.2149]
[1760282320079,5.18205151,4072.6,4071.1,2.92591065]
[1760282320281,5.18205151,4072.6,4071.1,0.4696]
[1760282320481,5.18205151,4072.6,4070.6,2.45664029]
[1760282320793,5.18205151,4072.6,4072.5,2.45549416]
[1760282322415,0.6,4075.0,4072.5,2.45549416]
[1760282322416,0.6,4075.0,4072.5,2.3896]
[1760282322570,0.4432,4074.9,4072.6,0.4696]
[1760282322771,4.795168,4074.8,4071.6,0.4696]
[1760282322999,0.6336,4074.6,4071.7,2.45597661]
[1760282323170,0.4432,4074.5,4071.7,1.92]
[1760282323371,0.6,4075.0,4071.6,0.4696]
[1760282323372,18.621265,4074.3,4071.6,0.4696]
[1760282323682,0.6,4075.0,4070.9,0.4695]
[1760282323683,2.773121,4074.1,4070.9,0.4695]
[1760282324016,0.4432,4074.0,4071.1,2.45633858]
[1760282324197,0.4432,4074.0,4071.2,0.4695]
[1760282324524,0.4432,4074.0,4071.4,2.45615758]
[1760282324667,0.4432,4074.0,4071.5,0.4695]
[1760282324867,0.6,4075.0,4071.5,1.23580136]
[1760282325110,0.6,4075.0,4071.2,1.92]
[1760282325111,1.0432,4075.0,4072.0,2.45579567]
[1760282325405,2.45404795,4074.9,4072.4,2.45555446]
[1760282325610,0.6,4075.0,4072.5,0.4695]
[1760282325769,0.6,4075.0,4073.5,2.45483983]
[1760282325975,0.6,4075.0,4073.8,2.45465086]
[1760282326297,0.6,4075.0,4073.1,0.4695]
[1760282326670,0.6,4075.0,4073.2,1.92]
[1760282326905,0.6,4075.0,4073.4,2.45492429]
[1760282327072,2.89728643,4074.9,4068.4,1.2036106]
[1760282327279,0.4432,4074.9,4071.8,0.4695]
[1760282327606,0.6,4075.0,4071.8,0.4695]
[1760282327607,0.6,4075.0,4071.9,2.45585598]
[1760282327826,0.6,4075.0,4073.7,2.45475458]
[1760282328110,0.6,4075.0,4072.1,2.45573536]
[1760282328111,0.6,4075.0,4073.3,1.92]
[1760282328269,0.6,4075.0,4073.2,0.4515]
[1760282328469,0.6,4075.0,4073.3,1.92]
[1760282328910,0.6,4075.0,4073.2,0.4515]
[1760282329071,0.6,4075.0,4073.7,2.4547193]
[1760282329273,0.6,4075.0,4072.9,0.4515]
[1760282329468,0.4395,4074.9,4072.9,0.4515]
[1760282329734,2.45435579,4074.4,4073.0,2.45518741]
[1760282329887,0.4395,4074.9,4073.5,2.45488442]
[1760282330088,2.89358417,4074.9,4072.7,0.4515]
[1760282330288,0.4395,4074.9,4072.8,1.92]
[1760282330626,0.4395,4074.9,4072.7,0.4515]
[1760282330927,0.4395,4074.9,4072.3,0.1923]
[1760282330928,0.003,4074.5,4072.3,0.1923]
[1760282331136,0.003,4074.5,4073.4,2.45493587]
[1760282331422,0.1224,4074.3,4073.7,0.1224]
[1760282331585,0.003,4074.5,4072.4,2.3715]
[1760282331586,0.4425,4074.5,4072.4,0.4515]
[1760282331787,0.1224,4074.1,4073.4,0.1224]
[1760282332030,0.4425,4074.5,4071.0,0.4515]
[1760282332031,0.0734,4073.5,4071.0,0.4515]
[1760282332238,0.4358,4073.4,4071.4,0.4515]
[1760282332405,0.4358,4073.4,4067.5,1.35610438]
[1760282332406,0.6336,4073.3,4069.4,0.6664]
[1760282332605,0.0734,4073.5,4069.5,0.4515]
[1760282332807,0.4358,4073.4,4069.6,2.45724395]
[1760282333023,0.4358,4073.4,4069.7,0.4515]
[1760282333206,0.4358,4073.4,4072.2,2.45563125]
[1760282333421,0.4358,4073.4,4072.2,2.45563485]
[1760282333629,0.0734,4073.5,4070.8,1.92]
[1760282333832,0.4358,4073.3,4070.6,0.6438]
[1760282334146,2.385,4073.1,4070.6,0.4515]
[1760282334298,0.4358,4073.0,4070.3,0.4515]
[1760282334899,2.45548865,4072.6,4070.3,0.4515]
[1760282335102,0.4358,4072.5,4069.4,0.2149]
[1760282335300,0.4358,4072.5,4069.4,0.6664]
[1760282335600,0.0734,4073.5,4068.7,0.2149]
[1760282335601,0.6336,4072.1,4068.7,0.2149]
[1760282335822,0.4358,4072.0,4069.1,0.4515]
[1760282336018,0.2245,4071.9,4069.1,0.4515]
[1760282336309,0.4358,4071.8,4068.7,0.2149]
[1760282336513,0.4358,4071.8,4069.0,0.4535]
[1760282336705,0.4358,4071.8,4069.1,4.37754589]
[1760282336902,0.4358,4071.8,4069.2,0.4515]
[1760282337331,2.45659597,4070.7,4069.0,0.002]
[1760282337532,0.4358,4071.8,4069.5,2.45728089]
[1760282337838,0.4358,4071.7,4069.0,0.002]
[1760282338045,2.45630247,4071.2,4069.5,2.45726601]
[1760282338352,3.09005925,4070.9,4069.0,0.002]
[1760282338535,4.558633,4071.0,4069.0,0.002]
[1760282338706,2.45664029,4070.6,4069.0,0.002]
[1760282338905,2.45754589,4069.1,4069.0,0.002]
[1760282339111,2.45745699,4069.3,4064.8,0.983]
[1760282339112,2.5536,4069.3,4066.2,2.4592986]
[1760282339343,0.6336,4068.9,4065.5,0.4515]
[1760282339546,4.430148,4068.6,4065.5,0.4515]
[1760282339850,6.468699,4068.1,4063.9,0.4515]
[1760282340055,0.4338,4068.5,4063.9,0.4515]
[1760282340056,2.45833128,4067.8,4063.9,0.4515]
[1760282340209,2.45851259,4067.5,4064.0,2.46062992]
[1760282340409,28.286981,4067.2,4063.1,0.4515]
[1760282340646,1.92,4066.8,4062.4,0.2149]
[1760282340989,0.6336,4066.1,4061.6,0.4515]
[1760282341248,1.92,4066.6,4061.6,0.4515]
[1760282341249,4.37954055,4065.8,4061.6,0.4515]
[1760282341404,0.6336,4065.3,4060.5,0.4515]
[1760282341605,30.6336,4064.9,4060.3,0.4515]
[1760282341809,0.6336,4065.1,4059.1,2.46558325]
[1760282341810,0.1224,4061.3,4060.6,0.1224]
[1760282342054,0.1224,4061.7,4061.0,0.1224]
[1760282342347,0.2244,4064.3,4061.1,0.4515]
[1760282342348,0.6336,4063.6,4061.1,0.4515]
[1760282342644,0.4303,4063.5,4060.9,0.4515]
[1760282342851,0.4303,4064.0,4060.9,2.46248264]
[1760282343010,0.6547,4064.3,4061.0,0.4515]
[1760282343211,0.2245,4066.2,4061.0,0.4515]
[1760282343212,0.4302,4065.0,4061.0,0.4515]
[1760282343443,0.4302,4065.0,4062.5,2.46153048]
[1760282343607,0.6547,4066.2,4062.7,0.6336]
[1760282343812,0.2231,4066.9,4062.9,0.6336]
[1760282344045,2.45679522,4070.4,4063.3,0.6336]
[1760282344046,0.2245,4068.0,4063.3,0.6336]
[1760282344249,1.29345062,4073.6,4063.1,0.6336]
[1760282344250,0.2245,4068.6,4063.4,0.4515]
[1760282344452,5.016805,4068.5,4063.4,0.73531442]
[1760282344653,8.195645,4068.4,4063.6,2.46087213]
[1760282344889,2.45866211,4067.3,4063.6,4.38087213]
[1760282345097,0.6336,4066.9,4064.4,2.46033803]
[1760282345388,0.4267,4066.8,4063.6,4.38087213]
[1760282345690,0.2245,4067.2,4063.5,0.4515]
[1760282345691,0.4267,4066.7,4063.5,0.4515]
[1760282345900,0.4267,4067.7,4067.6,2.45845215]
[1760282346053,0.4267,4067.7,4065.0,0.4515]
[1760282346258,0.4267,4067.7,4064.9,1.92]
[1760282346259,0.4267,4067.7,4066.7,2.45897819]
[1760282346454,2.869788,4067.6,4065.8,2.4595035]
[1760282346687,3.126916,4067.4,4064.1,0.4515]
[1760282346887,0.4267,4067.3,4064.3,2.46044829]
[1760282347193,0.6336,4066.9,4063.8,2.46075102]
[1760282347495,0.6336,4066.5,4063.3,0.4515]
[1760282347693,0.6336,4066.0,4063.1,2.46116127]
[1760282347876,0.6336,4066.2,4063.7,2.46079442]
[1760282347877,0.6336,4065.8,4063.7,2.46079442]
[1760282348080,0.4233,4065.7,4062.6,0.4515]
[1760282348300,0.99999999,4069.9,4061.4,0.984]
[1760282348301,0.4199,4067.1,4066.4,2.45915373]
[1760282348593,0.4199,4067.1,4064.6,1.92]
[1760282348799,0.4199,4067.7,4065.2,1.92]
[1760282348997,0.4199,4067.7,4065.0,2.4600246]
[1760282349298,2.68237884,4068.6,4065.3,1.92]
[1760282349458,2.68237884,4068.6,4065.1,0.4515]
[1760282349459,0.2245,4068.6,4065.5,0.6336]
[1760282349661,0.4199,4068.7,4065.6,0.4515]
[1760282349863,0.4199,4068.7,4065.8,1.92]
[1760282350169,2.87771454,4068.7,4066.0,2.45941957]
[1760282350365,2.87771454,4068.7,4067.4,2.4585582]
[1760282350366,2.87769299,4068.7,4067.4,2.4585582]
[1760282350596,0.4199,4068.6,4065.9,0.4515]
[1760282350894,0.4199,4068.6,4066.0,1.92]
[1760282351097,0.4199,4069.4,4067.4,2.45856288]
[1760282351299,0.4199,4069.4,4067.1,0.4515]
[1760282351454,3.823608,4069.3,4066.2,0.4515]
[1760282351655,0.4199,4069.2,4065.5,1.92]
[1760282351855,1.0535,4069.1,4065.7,2.45960105]
[1760282352061,0.1224,4067.6,4066.9,0.1224]
[1760282352405,0.1224,4067.9,4067.2,0.1224]
[1760282352557,0.4199,4068.9,4067.6,2.45844627]
[1760282352758,0.4199,4068.8,4066.4,2.45917765]
[1760282352967,0.4199,4069.4,4066.6,1.92]
[1760282353389,2.4574855,4069.2,4067.6,2.45844256]
[1760282353567,0.4199,4069.4,4066.5,0.4515]
[1760282353898,0.4199,4069.4,4068.0,2.45820725]
[1760282353899,2.4574251,4069.3,4068.0,2.45820725]
[1760282354100,2.4574251,4069.3,4068.0,2.45817402]
[1760282354101,2.45742709,4069.3,4068.0,2.45817402]
[1760282354273,2.4573102,4069.5,4067.4,2.45853797]
[1760282354477,2.45736602,4069.4,4068.2,2.4580575]
[1760282354677,2.45718373,4069.7,4067.4,2.45857304]
[1760282355001,2.68162885,4069.8,4068.3,2.45801884]
[1760282355204,2.45730797,4069.5,4068.3,2.45801884]
[1760282355405,2.45730797,4069.5,4053.6,0.071]
[1760282355406,0.4199,4069.9,4066.5,0.6336]
[1760282355569,0.4199,4070.8,4067.5,1.92]
[1760282355768,0.2245,4071.4,4067.9,0.6336]
[1760282355998,0.4199,4071.5,4068.4,0.6336]
[1760282356192,0.0874,4072.0,4068.7,0.6336]
[1760282356408,0.0874,4072.0,4068.5,0.665]
[1760282356409,0.4199,4072.1,4068.6,0.6336]
[1760282356620,0.4199,4072.1,4068.7,0.6336]
[1760282356906,0.003,4074.5,4068.5,0.2135]
[1760282356907,0.4134,4074.0,4072.5,2.45549416]
[1760282357284,0.4134,4074.0,4071.2,0.4515]
[1760282357614,0.4134,4074.0,4070.8,0.2149]
[1760282357615,0.4134,4074.0,4072.5,2.45549416]
[1760282357813,0.004,4074.5,4072.5,2.45549416]
[1760282357971,0.004,4074.5,4072.5,2.90479416]
[1760282358167,0.004,4074.5,4072.5,2.45549416]
[1760282358394,0.004,4074.5,4070.6,0.984]
[1760282358395,0.4197,4074.0,4071.9,0.4493]
[1760282358613,0.004,4074.5,4072.4,0.4493]
[1760282358815,0.004,4074.5,4073.4,2.45489299]
[1760282359109,0.004,4074.5,4072.6,1.92]
[1760282359279,0.004,4074.5,4073.3,1.92]
[1760282359604,0.004,4074.5,4073.1,0.4493]
[1760282359605,0.004,4074.5,4074.4,2.4543491]
[1760282360307,0.004,4074.5,4074.4,4.8236491]
[1760282360696,0.004,4074.5,4074.4,0.4493]
[1760282360873,0.6,4075.0,4074.4,2.9036491]
[1760282361194,1e-08,4075.0,4073.1,0.6336]
[1760282361369,1e-08,4075.0,4073.5,2.45489137]
[1760282361574,1e-08,4075.0,4074.8,2.45410259]
[1760282361975,1e-08,4075.0,4074.9,0.4493]
[1760282362203,1e-08,4075.0,4074.9,2.3693]
[1760282362402,1e-08,4075.0,4074.8,4.37410259]
[1760282362607,1e-08,4075.0,4074.9,0.5717]
[1760282363105,1e-08,4075.0,4074.2,0.4493]
[1760282363278,1e-08,4075.0,4074.9,4.82334795]
[1760282364082,1e-08,4075.0,4074.9,4.37404795]
[1760282364281,1e-08,4075.0,4074.4,2.45430851]
[1760282364488,1e-08,4075.0,4073.3,0.4493]
[1760282364778,1e-08,4075.0,4074.4,2.45434343]
[1760282364974,1e-08,4075.0,4074.9,2.45404795]
[1760282365180,1e-08,4075.0,4073.9,0.4493]
[1760282365379,1e-08,4075.0,4074.9,2.45404795]
[1760282365925,1e-08,4075.0,4074.2,0.4493]
[1760282366135,0.3454,4074.9,4072.1,0.6667]
[1760282366277,0.3454,4074.9,4072.7,0.4493]
[1760282366776,2.45410817,4074.8,4072.2,0.4493]
[1760282367096,0.3454,4074.9,4072.2,0.4493]
[1760282367309,12.666509,4074.8,4071.6,0.4493]
[1760282367509,9.632761,4074.5,4071.6,0.4493]
[1760282367817,0.3454,4074.4,4070.0,2.45700245]
[1760282368015,1e-08,4075.0,4070.2,10.831115]
[1760282368315,1e-08,4075.0,4074.9,2.45404795]
[1760282368693,1e-08,4075.0,4074.5,2.45426665]
[1760282368890,1e-08,4075.0,4073.4,2.45495163]
[1760282369094,1e-08,4075.0,4071.9,2.45580809]
[1760282369312,1e-08,4075.0,4070.1,1.24888845]
[1760282369488,1e-08,4075.0,4070.0,23.517264]
[1760282369693,1e-08,4075.0,4074.0,2.45458975]
[1760282369889,1e-08,4075.0,4071.0,1.2639178]
[1760282369890,1e-08,4075.0,4073.9,2.45464466]
[1760282370091,1e-08,4075.0,4074.9,2.45404795]
[1760282370506,1e-08,4075.0,4074.9,4.82334795]
[1760282370790,1e-08,4075.0,4074.9,4.37404795]
[1760282371726,1e-08,4075.0,4074.9,4.82334795]
[1760282372290,1e-08,4075.0,4074.9,5.45694795]
[1760282372903,1e-08,4075.0,4074.9,4.82334795]
[1760282373103,1e-08,4075.0,4074.9,5.57934795]
[1760282373306,5.28332071,4077.3,4077.2,2.45266359]
[1760282373493,0.00454678,4079.0,4077.2,2.90196359]
[1760282373693,0.00454678,4079.0,4077.4,2.45254328]
[1760282374003,0.00454678,4079.0,4077.2,2.3693]
[1760282374209,0.00454678,4079.0,4077.2,0.4493]
[1760282374532,0.12828699,4083.3,4077.8,1.92]
[1760282374533,2.45001283,4081.7,4077.8,1.92]
[1760282374732,2.54812935,4080.1,4079.0,2.45156808]
[1760282374941,0.215,4080.8,4078.1,1.92]
[1760282375102,0.215,4080.8,4078.0,2.3693]
[1760282375437,0.215,4081.5,4079.6,2.4512207]
[1760282375647,0.215,4081.5,4078.2,2.45205105]
[1760282375803,0.215,4081.5,4079.6,2.4512207]
[1760282376154,1e-08,4079.7,4079.6,3.5341207]
[1760282376339,5.38458991,4082.1,4079.9,2.45104046]
[1760282376511,5.38458991,4082.1,4079.7,2.45113352]
[1760282376512,0.4558,4085.3,4079.7,1.92]
[1760282376834,0.4558,4085.3,4080.1,0.6336]
[1760282377037,0.001,4080.2,4080.1,2.45092032]
[1760282377223,0.4558,4084.8,4082.3,1.92]
[1760282377424,0.4558,4084.8,4080.2,1.92]
[1760282377425,2.44840421,4084.3,4080.3,2.5536]
[1760282377733,0.215,4085.6,4080.4,0.54899431]
[1760282377734,0.4558,4084.2,4080.4,0.54899431]
[1760282377957,2.964997,4084.0,4079.7,0.12804155]
[1760282378114,0.4558,4084.2,4079.7,0.12804155]
[1760282378441,2.33548,4083.8,4079.7,0.12804155]
[1760282378748,0.4558,4083.7,4079.8,1.92]
[1760282378905,0.4558,4083.6,4079.7,2.04804155]
[1760282379104,0.4558,4083.6,4081.0,2.45033247]
[1760282379306,0.4558,4083.6,4079.7,2.04804155]
[1760282379549,0.4558,4083.6,4079.8,1.92]
[1760282379845,0.9558,4084.4,4081.0,2.45037056]
[1760282380001,4.093294,4084.3,4080.7,0.6336]
[1760282380202,2.44857982,4084.0,4080.4,2.45072754]
[1760282380513,0.6708,4083.9,4080.0,2.45098039]
[1760282380716,0.6708,4083.9,4079.7,0.12804155]
[1760282380938,3.231869,4083.5,4079.7,0.12804155]
[1760282381105,0.4558,4083.4,4080.0,2.45095743]
[1760282381306,2.44943762,4082.6,4079.7,0.12804155]
[1760282381533,0.4558,4082.5,4079.7,0.12804155]
[1760282381721,2.44990138,4081.8,4079.7,0.12804155]
[1760282381919,2.4497195,4082.1,4079.7,0.12804155]
[1760282382229,0.6708,4082.0,4076.9,2.45281588]
[1760282382436,0.6708,4082.0,4076.7,1.27253113]
[1760282382945,0.6708,4082.0,4079.7,2.152]
[1760282383107,1.92,4081.7,4079.7,2.152]
[1760282383308,2.66700054,4079.8,4079.7,2.152]
[1760282383527,2.45258824,4077.4,4075.5,0.4453]
[1760282383844,2.45258824,4077.4,4074.0,0.1625]
[1760282383845,0.4323,4077.4,4074.2,0.4453]
[1760282384008,13.06022175,4079.5,4074.0,0.1625]
[1760282384009,0.4323,4079.1,4074.5,0.4453]
[1760282384422,0.4323,4079.1,4074.6,2.45422863]
[1760282384638,0.6336,4078.9,4074.8,2.45410817]
[1760282384940,2.45176159,4078.7,4074.6,2.45422863]
[1760282385120,2.45262323,4077.3,4075.7,2.45356247]
[1760282385322,2.45244509,4077.6,4074.9,0.4453]
[1760282385641,0.4323,4077.5,4074.4,0.002]
[1760282385816,2.45295314,4076.8,4074.5,0.4453]
[1760282386021,0.4323,4077.5,4074.5,0.4453]
[1760282386227,2.45213676,4078.1,4075.7,2.45356398]
[1760282386228,2.45275753,4077.1,4075.7,2.45356398]
[1760282386421,2.45249208,4077.5,4076.1,2.45329493]
[1760282386709,0.2159,4080.0,4076.2,0.6336]
[1760282386710,0.4323,4078.9,4076.2,0.6336]
[1760282386910,2.45177628,4078.7,4075.4,2.4537441]
[1760282387112,0.4323,4078.6,4074.4,0.002]
[1760282387310,1.92,4078.4,4074.6,0.4453]
[1760282387530,2.45278049,4077.1,4074.6,0.4453]
[1760282387731,0.4624,4078.3,4074.6,0.4453]
[1760282388042,0.4624,4078.3,4075.9,2.45343744]
[1760282388246,0.4624,4078.3,4074.6,2.3653]
[1760282388247,0.4624,4078.3,4075.3,2.5536]
[1760282388407,0.4624,4078.3,4074.4,0.002]
[1760282388408,0.4624,4078.3,4076.6,2.45298468]
[1760282388615,0.4624,4078.3,4075.9,0.6336]
[1760282388616,0.4624,4078.3,4075.9,0.4348]
[1760282388821,0.2159,4080.0,4075.9,0.4348]
[1760282388822,0.4624,4080.3,4076.2,0.6336]
[1760282389052,2.45086025,4080.2,4076.6,1.92]
[1760282389347,2.44974266,4082.1,4076.7,0.4348]
[1760282389520,0.4624,4081.0,4077.2,0.6336]
[1760282389880,0.4624,4081.0,4077.5,2.45248313]
[1760282390024,0.4624,4081.0,4077.6,0.4348]
[1760282390224,0.4624,4081.0,4077.7,1.92]
[1760282390452,0.4624,4081.0,4074.3,0.50022071]
[1760282390453,0.4624,4081.9,4079.4,2.45130145]
[1760282390654,0.4624,4081.9,4078.8,0.6336]
[1760282390655,0.2222,4081.8,4078.9,0.4348]
[1760282390860,0.4624,4081.7,4078.9,0.4348]
[1760282391368,0.4624,4081.7,4079.1,2.45152116]
[1760282391564,0.4624,4081.7,4079.0,1.92]
[1760282391726,0.4624,4081.7,4078.7,0.1625]
[1760282391727,0.4624,4081.6,4078.7,0.1625]
[1760282391923,0.4624,4081.6,4079.3,2.45137376]
[1760282392128,0.6336,4081.4,4078.3,0.4348]
[1760282392360,0.4624,4081.3,4078.3,0.4348]
[1760282392558,2.45031976,4081.1,4078.3,0.4348]
[1760282392762,0.4624,4081.3,4079.5,2.45126039]
[1760282392964,0.4624,4081.3,4079.1,0.4348]
[1760282393149,2.45031378,4081.2,4079.3,2.45140097]
[1760282393327,0.1224,4081.0,4078.4,1.92]
[1760282393529,0.4624,4082.6,4078.6,1.92]
[1760282393731,0.4624,4082.6,4079.0,2.5536]
[1760282394033,2.44813981,4084.8,4079.6,1.92]
[1760282394034,0.4624,4083.4,4079.6,1.92]
[1760282394369,0.4624,4083.4,4081.6,2.45000058]
[1760282394667,0.4624,4083.1,4080.4,0.4348]
[1760282394874,0.4624,4083.1,4079.7,0.6336]
[1760282395075,0.4624,4083.1,4079.8,2.88590054]
[1760282395235,0.4624,4083.4,4079.9,1.92]
[1760282395438,0.4624,4083.1,4080.0,2.45098039]
[1760282395671,0.9624,4084.4,4081.3,2.45019969]
[1760282395856,0.6846,4083.7,4080.2,2.45086025]
[1760282396172,2.91116201,4083.7,4080.3,0.4348]
[1760282396377,0.2222,4083.9,4081.5,2.45002609]
[1760282396551,0.2222,4083.9,4080.4,0.6336]
[1760282396552,0.4624,4083.1,4080.4,0.6336]
[1760282396881,0.4624,4083.0,4080.3,0.4348]
[1760282397059,0.4624,4083.0,4080.4,2.45074012]
[1760282397264,0.4624,4083.0,4080.7,0.6336]
[1760282397454,0.4624,4083.0,4080.2,1.92]
[1760282397455,0.4624,4083.7,4080.9,0.6336]
[1760282397776,2.44881402,4083.7,4082.6,2.44940064]
[1760282397944,2.44851701,4084.2,4081.8,0.6336]
[1760282398146,0.4624,4084.3,4082.0,2.5536]
[1760282398473,0.4624,4084.3,4081.9,2.44983953]
[1760282398474,0.4624,4084.3,4082.1,2.44966757]
[1760282398678,0.5,4084.4,4082.1,0.6336]
[1760282398973,2.4484959,4084.2,4082.1,1.92]
[1760282399275,2.44882085,4083.6,4081.8,0.6336]
[1760282399577,2.44882085,4083.6,4081.7,2.44995957]
[1760282399578,0.4624,4084.1,4081.7,2.44995957]
[1760282399783,0.4624,4084.1,4081.5,0.4348]
[1760282400072,0.9624,4084.4,4081.5,0.4348]
[1760282400281,0.9624,4084.4,4081.6,0.6336]
[1760282400572,0.5,4084.4,4081.9,1.92]
[1760282400773,0.5,4084.4,4081.5,0.4348]
[1760282400978,0.5,4084.4,4084.3,2.44839997]
[1760282401355,0.5,4084.4,4084.3,2.88319997]
[1760282401681,0.00455953,4089.0,4084.3,2.88319997]
[1760282401682,0.2222,4088.9,4085.5,2.44764127]
[1760282401840,0.2222,4088.9,4085.6,0.4348]
[1760282401841,0.4624,4087.9,4085.6,0.4348]
[1760282402041,0.2222,4088.9,4085.7,0.6336]
[1760282402352,2.44626575,4087.9,4085.7,0.6336]
[1760282402672,2.44655742,4087.4,4084.2,0.1499]
[1760282402875,0.4624,4087.9,4084.2,0.1499]
[1760282402876,0.4624,4087.9,4084.9,0.4348]
[1760282403075,2.44664033,4087.3,4084.9,0.4348]
[1760282403381,0.4624,4087.4,4084.9,0.4348]
[1760282403691,0.584,4086.8,4086.1,0.1216]
[1760282403853,0.4624,4086.8,4083.4,0.1499]
[1760282404057,2.44773906,4085.5,4083.5,0.4348]
[1760282404386,2.44786056,4085.2,4082.0,0.4348]
[1760282404541,0.4624,4085.1,4082.2,2.44965949]
[1760282404737,0.4624,4085.0,4079.8,1.27253113]
[1760282404949,0.6336,4084.4,4078.5,0.981]
[1760282405145,1.92,4084.1,4078.5,0.981]
[1760282405385,1.92,4083.7,4078.5,0.981]
[1760282405593,4.3689396,4083.4,4079.2,2.45144831]
[1760282405885,2.44917952,4083.0,4078.5,1.4158]
[1760282406088,1.92,4082.6,4078.5,0.981]
[1760282406293,1.92,4083.1,4075.7,2.45354458]
[1760282406294,0.6336,4082.2,4077.1,0.4348]
[1760282406589,0.4624,4082.5,4077.6,0.4348]
[1760282406751,2.44695061,4086.8,4077.6,0.4348]
[1760282406752,0.6846,4084.4,4077.8,1.26421497]
[1760282406953,0.4624,4084.4,4078.2,3.15061436]
[1760282407287,2.44870857,4083.8,4082.5,2.44946387]
[1760282407492,2.44873425,4083.8,4081.7,0.4348]
[1760282407699,2.44890817,4083.5,4081.7,0.4348]
[1760282407878,0.4624,4084.0,4081.2,0.6336]
[1760282408083,0.4624,4084.6,4081.7,0.6336]
[1760282408279,0.4624,4084.6,4082.0,2.44974211]
[1760282408630,0.4624,4084.6,4081.3,2.45017534]
[1760282408631,2.44864484,4083.9,4080.4,0.4348]
[1760282408762,0.4624,4084.0,4080.4,0.4348]
[1760282408962,0.4624,4084.0,4079.1,2.45150067]
[1760282409183,1.92,4083.6,4079.2,0.4348]
[1760282409383,0.4624,4083.5,4079.2,0.4348]
[1760282409588,1.92,4083.1,4079.2,0.4348]
[1760282409756,1.92,4082.9,4080.1,2.45090845]
[1760282409962,2.44923951,4082.9,4080.2,0.4348]
[1760282410175,2.44948968,4082.5,4080.2,0.4348]
[1760282410362,2.44890711,4083.5,4078.3,1.1435]
[1760282410363,0.4624,4082.4,4078.3,1.1435]
[1760282410601,3.137534,4082.2,4078.4,0.4348]
[1760282410762,14.684107,4082.0,4078.4,0.4348]
[1760282410962,0.6846,4081.9,4078.4,0.4348]
[1760282411377,2.358497,4081.8,4079.0,2.45154296]
[1760282411573,0.6846,4081.9,4078.3,0.1625]
[1760282411574,0.4624,4081.7,4078.3,0.1625]
[1760282411812,0.4624,4081.7,4078.4,0.4348]
[1760282412104,2.4500196,4081.6,4078.4,2.3548]
[1760282412299,0.4624,4081.5,4078.4,0.4348]
[1760282412507,0.4624,4081.5,4077.8,0.4348]
[1760282412715,12.036028,4081.2,4077.8,0.4348]
[1760282412872,2.45176118,4078.8,4077.5,0.002]
[1760282413072,5.166765,4082.2,4077.6,0.4348]
[1760282413293,5.166765,4082.2,4077.5,0.002]
[1760282413294,2.4513809,4079.4,4077.5,0.002]
[1760282413493,10.37358076,4081.1,4077.5,0.002]
[1760282413698,0.4624,4079.9,4077.5,0.002]
[1760282414109,0.1224,4079.5,4078.8,0.1224]
[1760282414614,0.4624,4079.4,4077.5,0.002]
[1760282415279,2.45140097,4079.3,4077.5,0.002]
[1760282415486,5.103631,4079.1,4077.5,0.002]
[1760282415684,2.45152116,4079.1,4077.5,0.002]
[1760282415982,2.45242299,4077.6,4077.5,0.002]
[1760282416496,2.91482299,4077.6,4077.5,0.002]
[1760282416876,9.97913399,4077.6,4077.5,0.002]
[1760282417072,0.4624,4077.6,4077.5,0.002]
[1760282417278,7.50970999,4077.6,4077.5,0.002]
[1760282417480,2.45248313,4077.5,4075.3,2.45379781]
[1760282417708,2.45248313,4077.5,4074.4,0.002]
[1760282417709,0.4299,4077.4,4076.1,2.45327318]
[1760282417872,0.4299,4077.4,4075.3,2.45380265]
[1760282418075,0.4299,4077.4,4074.5,0.4747]
[1760282418076,0.4299,4077.4,4074.6,2.45422863]
[1760282418286,0.4299,4077.4,4076.4,2.45314434]
[1760282418486,0.4299,4077.4,4075.1,2.3947]
[1760282418689,0.4299,4078.3,4075.6,0.6336]
[1760282418907,0.4299,4078.3,4075.7,2.45356625]
[1760282419225,0.4299,4078.3,4075.7,0.4747]
[1760282419377,0.4299,4079.1,4075.3,2.4537756]
[1760282419579,0.4299,4079.0,4076.0,0.6336]
[1760282419781,0.4299,4079.0,4075.8,0.4747]
[1760282419782,0.4299,4080.7,4076.4,1.92]
[1760282420001,0.4299,4080.7,4076.6,2.45302457]